[Event "*** SCC Grand Prix: Titled Tuesday Blitz"]
[Site "Chess.com"]
[Date "2020.07.21"]
[Round "1"]
[White "Alexander_Moskalenko"]
[Black "Xeniya2005"]
[Result "1-0"]
[WhiteElo "2772"]
[BlackElo "2389"]
[TimeControl "180+1"]
[EndTime "10:07:05 PDT"]
[Termination "Alexander_Moskalenko won by resignation"]

1. e4 {[%clk 0:02:58.3]} 1... e6 {[%clk 0:02:59.4]} 2. d4 {[%clk 0:02:54.5]}
2... d5 {[%clk 0:02:59]} 3. Bd3 {[%clk 0:02:55.2]} 3... dxe4 {[%clk 0:02:57.4]}
4. Bxe4 {[%clk 0:02:56.1]} 4... Nf6 {[%clk 0:02:55.4]} 5. Bf3 {[%clk 0:02:56.2]}
5... Nbd7 {[%clk 0:02:48]} 6. Bf4 {[%clk 0:02:41.9]} 6... c5 {[%clk 0:02:44.6]}
7. Ne2 {[%clk 0:02:41.1]} 7... Qb6 {[%clk 0:02:39.7]} 8. Nbc3 {[%clk 0:02:26.4]}
8... Bd6 {[%clk 0:02:20.1]} 9. Bxd6 {[%clk 0:02:12.9]} 9... Qxd6 {[%clk
0:02:18.8]} 10. O-O {[%clk 0:02:13.8]} 10... O-O {[%clk 0:02:12.3]} 11. Re1
{[%clk 0:02:10.2]} 11... Re8 {[%clk 0:01:54.7]} 12. a4 {[%clk 0:02:01.8]} 12...
Nb6 {[%clk 0:01:16.4]} 13. Nb5 {[%clk 0:01:56.8]} 13... Qe7 {[%clk 0:01:14.3]}
14. dxc5 {[%clk 0:01:56.9]} 14... Qxc5 {[%clk 0:01:12.8]} 15. Qd6 {[%clk
0:01:56.6]} 15... Qxd6 {[%clk 0:01:01.9]} 16. Nxd6 {[%clk 0:01:57.5]} 16... Rd8
{[%clk 0:01:01.9]} 17. Nxb7 {[%clk 0:01:55.5]} 17... Bxb7 {[%clk 0:01:00.8]} 18.
Bxb7 {[%clk 0:01:56.4]} 18... Rab8 {[%clk 0:01:00.9]} 19. Ba6 {[%clk 0:01:52.8]}
19... Rd2 {[%clk 0:00:55.6]} 20. Bd3 {[%clk 0:01:46.6]} 20... Nbd5 {[%clk
0:00:47.5]} 21. b3 {[%clk 0:01:45.4]} 21... Nb4 {[%clk 0:00:41.4]} 22. Red1
{[%clk 0:01:33.6]} 22... Rxd1+ {[%clk 0:00:34.3]} 23. Rxd1 {[%clk 0:01:33]}
23... Nfd5 {[%clk 0:00:34.3]} 24. c4 {[%clk 0:01:29.7]} 24... Nf6 {[%clk
0:00:27.5]} 25. f3 {[%clk 0:01:24.9]} 25... Kf8 {[%clk 0:00:25.4]} 26. Kf2
{[%clk 0:01:21.5]} 26... Ke7 {[%clk 0:00:24.6]} 27. Ke3 {[%clk 0:01:20.4]} 27...
Nd7 {[%clk 0:00:23.6]} 28. Nd4 {[%clk 0:01:01.2]} 28... Nc5 {[%clk 0:00:20.1]}
29. Be4 {[%clk 0:01:00.5]} 29... f5 {[%clk 0:00:18.2]} 30. Bb1 {[%clk
0:00:58.4]} 30... g6 {[%clk 0:00:17.4]} 31. f4 {[%clk 0:00:58.5]} 31... Kf6
{[%clk 0:00:14.7]} 32. h3 {[%clk 0:00:55.5]} 32... Re8 {[%clk 0:00:14.2]} 33.
Kd2 {[%clk 0:00:50.2]} 33... a5 {[%clk 0:00:12.9]} 34. Kc3 {[%clk 0:00:49.6]}
34... e5 {[%clk 0:00:12.8]} 35. fxe5+ {[%clk 0:00:45.8]} 35... Rxe5 {[%clk
0:00:13.7]} 36. Nc2 {[%clk 0:00:46.4]} 36... Re2 {[%clk 0:00:13.2]} 37. Nxb4
{[%clk 0:00:45.6]} 37... axb4+ {[%clk 0:00:10.9]} 38. Kxb4 {[%clk 0:00:46.5]}
38... Ne6 {[%clk 0:00:10.3]} 39. a5 {[%clk 0:00:43.7]} 39... Rxg2 {[%clk
0:00:06.3]} 40. a6 {[%clk 0:00:44.2]} 40... Nc7 {[%clk 0:00:06.4]} 41. a7 {[%clk
0:00:44.3]} 41... Re2 {[%clk 0:00:06]} 42. Rd7 {[%clk 0:00:44.2]} 1-0

[Event "*** SCC Grand Prix: Titled Tuesday Blitz"]
[Site "Chess.com"]
[Date "2020.07.21"]
[Round "1"]
[White "AsselLesbekova"]
[Black "RobertoJBM"]
[Result "0-1"]
[WhiteElo "2322"]
[BlackElo "2653"]
[TimeControl "180+1"]
[EndTime "10:07:05 PDT"]
[Termination "RobertoJBM won by resignation"]

1. e4 {[%clk 0:03:00.8]} 1... c6 {[%clk 0:02:58.4]} 2. d4 {[%clk 0:03:01.1]}
2... d5 {[%clk 0:02:59.3]} 3. Nd2 {[%clk 0:03:01.1]} 3... dxe4 {[%clk
0:02:59.4]} 4. Nxe4 {[%clk 0:03:02]} 4... Nd7 {[%clk 0:02:59.5]} 5. c3 {[%clk
0:03:00]} 5... Ngf6 {[%clk 0:02:59.4]} 6. Bd3 {[%clk 0:03:00.5]} 6... Nxe4
{[%clk 0:02:58.7]} 7. Bxe4 {[%clk 0:03:01.4]} 7... Nf6 {[%clk 0:02:59.6]} 8. Bc2
{[%clk 0:03:02]} 8... Bg4 {[%clk 0:02:57.5]} 9. f3 {[%clk 0:02:59.1]} 9... Bh5
{[%clk 0:02:57.4]} 10. Ne2 {[%clk 0:02:58.6]} 10... Bg6 {[%clk 0:02:57]} 11. Be3
{[%clk 0:02:56.4]} 11... e6 {[%clk 0:02:52.7]} 12. Bxg6 {[%clk 0:02:54.8]} 12...
hxg6 {[%clk 0:02:52.2]} 13. Qb3 {[%clk 0:02:55.2]} 13... Qb6 {[%clk 0:02:51.6]}
14. O-O-O {[%clk 0:02:49.8]} 14... Be7 {[%clk 0:02:46.5]} 15. g4 {[%clk
0:02:49.3]} 15... Nd5 {[%clk 0:02:35.6]} 16. Bd2 {[%clk 0:02:48.7]} 16... O-O-O
{[%clk 0:02:27.6]} 17. c4 {[%clk 0:02:44.1]} 17... Qxb3 {[%clk 0:02:26.1]} 18.
axb3 {[%clk 0:02:45]} 18... Nb6 {[%clk 0:02:22.2]} 19. Be3 {[%clk 0:02:40.6]}
19... Rh7 {[%clk 0:02:18.2]} 20. Nc3 {[%clk 0:02:34.8]} 20... Rdh8 {[%clk
0:02:17.4]} 21. Bf4 {[%clk 0:02:34.8]} 21... Rh3 {[%clk 0:02:10]} 22. Rdf1
{[%clk 0:02:32.3]} 22... Bd8 {[%clk 0:02:03.7]} 23. Bg3 {[%clk 0:02:29]} 23...
Bc7 {[%clk 0:02:03.1]} 24. f4 {[%clk 0:02:29.1]} 24... Nd7 {[%clk 0:02:00.4]}
25. Ne4 {[%clk 0:02:26.1]} 25... f6 {[%clk 0:01:57.2]} 26. Kd2 {[%clk
0:02:25.5]} 26... a6 {[%clk 0:01:53]} 27. Ke3 {[%clk 0:02:24.7]} 27... Kd8
{[%clk 0:01:53]} 28. Kf3 {[%clk 0:02:24.8]} 28... Ke7 {[%clk 0:01:52.3]} 29. Kg2
{[%clk 0:02:25.2]} 29... R3h7 {[%clk 0:01:52.2]} 30. h4 {[%clk 0:02:24.2]} 30...
Rd8 {[%clk 0:01:48.8]} 31. f5 {[%clk 0:02:17.3]} 31... Bxg3 {[%clk 0:01:48.4]}
32. Nxg3 {[%clk 0:02:17.5]} 32... gxf5 {[%clk 0:01:44.6]} 33. gxf5 {[%clk
0:02:16.7]} 33... Nf8 {[%clk 0:01:45.1]} 34. Rd1 {[%clk 0:02:14.1]} 34... Kf7
{[%clk 0:01:41.7]} 35. fxe6+ {[%clk 0:02:11.8]} 35... Nxe6 {[%clk 0:01:42.6]}
36. d5 {[%clk 0:02:12.2]} 36... cxd5 {[%clk 0:01:42.2]} 37. cxd5 {[%clk
0:02:12.8]} 37... Rxd5 {[%clk 0:01:39.4]} 38. Rxd5 {[%clk 0:02:10.9]} 38... Nf4+
{[%clk 0:01:39.9]} 39. Kf3 {[%clk 0:02:11.3]} 39... Nxd5 {[%clk 0:01:40.8]} 40.
Rd1 {[%clk 0:02:11.4]} 40... Ke6 {[%clk 0:01:38.9]} 41. Ne4 {[%clk 0:02:07.9]}
41... b6 {[%clk 0:01:33.7]} 42. Kg3 {[%clk 0:02:03]} 42... Rh8 {[%clk 0:01:32]}
43. Nc3 {[%clk 0:02:00.2]} 43... Nxc3 {[%clk 0:01:30.7]} 44. bxc3 {[%clk
0:02:01.1]} 44... Rc8 {[%clk 0:01:31.3]} 45. c4 {[%clk 0:02:01.3]} 45... b5
{[%clk 0:01:31.5]} 46. Rd4 {[%clk 0:01:55.9]} 46... bxc4 {[%clk 0:01:30.3]} 47.
bxc4 {[%clk 0:01:56.8]} 47... Rc5 {[%clk 0:01:29.2]} 48. Rg4 {[%clk 0:01:54.9]}
48... Kf7 {[%clk 0:01:28.6]} 49. Kf3 {[%clk 0:01:54.3]} 49... Re5 {[%clk
0:01:24.9]} 50. Rd4 {[%clk 0:01:48.8]} 50... a5 {[%clk 0:01:18.5]} 51. Rd7+
{[%clk 0:01:43.9]} 51... Re7 {[%clk 0:01:18.3]} 52. Rd5 {[%clk 0:01:43.2]} 52...
Ra7 {[%clk 0:01:17.8]} 53. Rb5 {[%clk 0:01:36.9]} 53... a4 {[%clk 0:01:17.3]}
54. Rb2 {[%clk 0:01:36.9]} 54... Ke6 {[%clk 0:01:16]} 55. Ke4 {[%clk 0:01:35]}
55... a3 {[%clk 0:01:15.1]} 56. Ra2 {[%clk 0:01:31.9]} 56... g5 {[%clk
0:01:15.1]} 57. hxg5 {[%clk 0:01:29.8]} 57... fxg5 {[%clk 0:01:16]} 58. Kd3
{[%clk 0:01:12]} 58... Kd6 {[%clk 0:01:15.2]} 59. Kc2 {[%clk 0:01:04.2]} 59...
Kc5 {[%clk 0:01:14.7]} 60. Kb3 {[%clk 0:01:03.2]} 60... g4 {[%clk 0:01:11.6]}
61. Ra1 {[%clk 0:00:58.2]} 61... a2 {[%clk 0:01:10.8]} 62. Kb2 {[%clk
0:00:51.7]} 62... g3 {[%clk 0:01:10.7]} 0-1

[Event "*** SCC Grand Prix: Titled Tuesday Blitz"]
[Site "Chess.com"]
[Date "2020.07.21"]
[Round "1"]
[White "sasko1234"]
[Black "Oneofmyturns"]
[Result "0-1"]
[WhiteElo "2375"]
[BlackElo "2734"]
[TimeControl "180+1"]
[EndTime "10:07:06 PDT"]
[Termination "Oneofmyturns won by resignation"]

1. b3 {[%clk 0:02:58.1]} 1... Nf6 {[%clk 0:02:58.3]} 2. Bb2 {[%clk 0:02:58.1]}
2... d5 {[%clk 0:02:59.1]} 3. e3 {[%clk 0:02:57.8]} 3... e6 {[%clk 0:02:59]} 4.
Nf3 {[%clk 0:02:57.3]} 4... Bd6 {[%clk 0:02:55.5]} 5. Be2 {[%clk 0:02:55.3]}
5... c5 {[%clk 0:02:55.8]} 6. c4 {[%clk 0:02:53.9]} 6... O-O {[%clk 0:02:53.2]}
7. O-O {[%clk 0:02:52.7]} 7... Nc6 {[%clk 0:02:51.8]} 8. cxd5 {[%clk 0:02:52.1]}
8... exd5 {[%clk 0:02:52.5]} 9. d4 {[%clk 0:02:52.5]} 9... Re8 {[%clk 0:02:39]}
10. dxc5 {[%clk 0:02:44.9]} 10... Bxc5 {[%clk 0:02:39.9]} 11. Nc3 {[%clk
0:02:45.1]} 11... Bg4 {[%clk 0:02:29]} 12. Na4 {[%clk 0:02:41.1]} 12... Be7
{[%clk 0:02:23.9]} 13. Rc1 {[%clk 0:02:17.5]} 13... a6 {[%clk 0:02:18.7]} 14. h3
{[%clk 0:02:12.5]} 14... Bh5 {[%clk 0:02:16.5]} 15. Nc5 {[%clk 0:02:01.3]} 15...
Qb6 {[%clk 0:01:41.5]} 16. Na4 {[%clk 0:01:56.1]} 16... Qd8 {[%clk 0:01:40.1]}
17. Nc5 {[%clk 0:01:55.4]} 17... Qb6 {[%clk 0:01:40.2]} 18. Na4 {[%clk
0:01:55.3]} 18... Qa5 {[%clk 0:01:39.3]} 19. Nd4 {[%clk 0:01:42.9]} 19... Bxe2
{[%clk 0:01:16]} 20. Nxc6 {[%clk 0:01:14.8]} 20... bxc6 {[%clk 0:00:51.4]} 21.
Qxe2 {[%clk 0:01:13.4]} 21... Rac8 {[%clk 0:00:52.1]} 22. Rfd1 {[%clk
0:01:07.4]} 22... Ne4 {[%clk 0:00:52.4]} 23. Qg4 {[%clk 0:01:03.3]} 23... Bf6
{[%clk 0:00:52.2]} 24. Bxf6 {[%clk 0:01:01.3]} 24... Nxf6 {[%clk 0:00:53.1]} 25.
Qf5 {[%clk 0:00:56.5]} 25... Ne4 {[%clk 0:00:49.1]} 26. Rc2 {[%clk 0:00:45.4]}
26... g6 {[%clk 0:00:44]} 27. Qf4 {[%clk 0:00:42.5]} 27... Kg7 {[%clk
0:00:42.1]} 28. Rdc1 {[%clk 0:00:41.7]} 28... Re6 {[%clk 0:00:38.6]} 29. Qf3
{[%clk 0:00:37.3]} 29... Rf6 {[%clk 0:00:36.7]} 30. Qd1 {[%clk 0:00:37.2]} 30...
Re8 {[%clk 0:00:32.6]} 31. Qd4 {[%clk 0:00:34.3]} 31... Re6 {[%clk 0:00:29.8]}
32. f3 {[%clk 0:00:28]} 32... Ng3 {[%clk 0:00:29.2]} 33. Kh2 {[%clk 0:00:25.8]}
33... Nf5 {[%clk 0:00:29.1]} 34. Qf4 {[%clk 0:00:20.5]} 34... Nxe3 {[%clk
0:00:28.5]} 35. Qd4 {[%clk 0:00:16.8]} 35... Qc7+ {[%clk 0:00:25.1]} 36. Kg1
{[%clk 0:00:15.7]} 36... Nxc2 {[%clk 0:00:24.5]} 37. Rxc2 {[%clk 0:00:15.9]}
37... Qg3 {[%clk 0:00:24.4]} 38. Rc1 {[%clk 0:00:12.8]} 38... Re2 {[%clk
0:00:19.5]} 0-1

[Event "*** SCC Grand Prix: Titled Tuesday Blitz"]
[Site "Chess.com"]
[Date "2020.07.21"]
[Round "1"]
[White "wild_cat99"]
[Black "vitnik2020"]
[Result "0-1"]
[WhiteElo "2621"]
[BlackElo "2314"]
[TimeControl "180+1"]
[EndTime "10:07:06 PDT"]
[Termination "vitnik2020 won on time"]

1. Nf3 {[%clk 0:03:00.9]} 1... d5 {[%clk 0:02:59]} 2. e3 {[%clk 0:03:00.6]} 2...
Nf6 {[%clk 0:02:57.1]} 3. c4 {[%clk 0:03:00.5]} 3... e6 {[%clk 0:02:55.9]} 4. b3
{[%clk 0:02:59.8]} 4... Be7 {[%clk 0:02:53.2]} 5. Bb2 {[%clk 0:02:59.2]} 5... b6
{[%clk 0:02:52.2]} 6. g3 {[%clk 0:02:57.4]} 6... O-O {[%clk 0:02:46.2]} 7. Bg2
{[%clk 0:02:55]} 7... Bb7 {[%clk 0:02:42.6]} 8. O-O {[%clk 0:02:54.3]} 8... c5
{[%clk 0:02:39.4]} 9. Qe2 {[%clk 0:02:45.7]} 9... Nc6 {[%clk 0:02:32.6]} 10. Nh4
{[%clk 0:02:45]} 10... d4 {[%clk 0:02:27.5]} 11. f4 {[%clk 0:02:26.5]} 11... d3
{[%clk 0:01:59.5]} 12. Qe1 {[%clk 0:02:04.6]} 12... Rb8 {[%clk 0:01:18.4]} 13.
Nc3 {[%clk 0:01:41.8]} 13... Nb4 {[%clk 0:01:15.8]} 14. Bxb7 {[%clk 0:01:28.9]}
14... Rxb7 {[%clk 0:01:15]} 15. Qf2 {[%clk 0:01:28.5]} 15... Nd7 {[%clk
0:01:04.5]} 16. Ng2 {[%clk 0:01:20.9]} 16... Bf6 {[%clk 0:01:03.9]} 17. Qf3
{[%clk 0:01:18.8]} 17... Qc7 {[%clk 0:00:55.6]} 18. g4 {[%clk 0:01:18.5]} 18...
g6 {[%clk 0:00:44.8]} 19. g5 {[%clk 0:01:16.8]} 19... Bg7 {[%clk 0:00:44.1]} 20.
h4 {[%clk 0:01:13.7]} 20... a6 {[%clk 0:00:23.4]} 21. h5 {[%clk 0:00:56.4]}
21... gxh5 {[%clk 0:00:22.5]} 22. Qxh5 {[%clk 0:00:51.3]} 22... f6 {[%clk
0:00:22.1]} 23. g6 {[%clk 0:00:33.8]} 23... hxg6 {[%clk 0:00:19.3]} 24. Qxg6
{[%clk 0:00:34.1]} 24... Rf7 {[%clk 0:00:13.9]} 25. f5 {[%clk 0:00:34.2]} 25...
Nf8 {[%clk 0:00:12.1]} 26. Qg4 {[%clk 0:00:28.3]} 26... exf5 {[%clk 0:00:11.9]}
27. Rxf5 {[%clk 0:00:29.2]} 27... Nc6 {[%clk 0:00:08.4]} 28. Ne4 {[%clk
0:00:14.9]} 28... Ne5 {[%clk 0:00:07]} 29. Bxe5 {[%clk 0:00:02.6]} 29... fxe5
{[%clk 0:00:06.3]} 0-1

[Event "*** SCC Grand Prix: Titled Tuesday Blitz"]
[Site "Chess.com"]
[Date "2020.07.21"]
[Round "1"]
[White "GoltsevDmitry2000"]
[Black "Morshynska"]
[Result "1-0"]
[WhiteElo "2564"]
[BlackElo "2176"]
[TimeControl "180+1"]
[EndTime "10:07:07 PDT"]
[Termination "GoltsevDmitry2000 won on time"]

1. e4 {[%clk 0:02:58.5]} 1... e5 {[%clk 0:02:58.7]} 2. Nf3 {[%clk 0:02:57.6]}
2... Nc6 {[%clk 0:02:58.2]} 3. Bb5 {[%clk 0:02:50.4]} 3... a6 {[%clk 0:02:58.1]}
4. Ba4 {[%clk 0:02:49.8]} 4... Nf6 {[%clk 0:02:58.1]} 5. O-O {[%clk 0:02:49.8]}
5... b5 {[%clk 0:02:58]} 6. Bb3 {[%clk 0:02:49.9]} 6... Bb7 {[%clk 0:02:58.2]}
7. Re1 {[%clk 0:02:49.9]} 7... Bc5 {[%clk 0:02:57.6]} 8. Nxe5 {[%clk 0:02:49.5]}
8... Nxe5 {[%clk 0:02:49.9]} 9. d4 {[%clk 0:02:49.4]} 9... d6 {[%clk 0:02:19.3]}
10. Nc3 {[%clk 0:02:33.9]} 10... Bb6 {[%clk 0:02:04.4]} 11. dxe5 {[%clk
0:02:32.5]} 11... dxe5 {[%clk 0:02:05.3]} 12. Nd5 {[%clk 0:02:28.7]} 12... Nxd5
{[%clk 0:01:48.8]} 13. exd5 {[%clk 0:02:28.4]} 13... O-O {[%clk 0:01:47.2]} 14.
Be3 {[%clk 0:02:21.1]} 14... Bxe3 {[%clk 0:01:22.9]} 15. Rxe3 {[%clk 0:02:22]}
15... Re8 {[%clk 0:01:21.3]} 16. Qe2 {[%clk 0:02:15.7]} 16... f6 {[%clk
0:00:43.7]} 17. Rd1 {[%clk 0:02:11.5]} 17... Kh8 {[%clk 0:00:38.4]} 18. Rh3
{[%clk 0:02:10.7]} 18... Qe7 {[%clk 0:00:33.9]} 19. Qe4 {[%clk 0:02:05]} 19...
h6 {[%clk 0:00:30.4]} 20. Qg6 {[%clk 0:02:03.9]} 20... Rad8 {[%clk 0:00:19.9]}
21. Rdd3 {[%clk 0:02:00.9]} 21... Rd6 {[%clk 0:00:18.8]} 22. Rdg3 {[%clk
0:01:55.5]} 22... f5 {[%clk 0:00:16.6]} 23. Qxf5 {[%clk 0:01:52.2]} 23... Rf8
{[%clk 0:00:13.4]} 24. Qe4 {[%clk 0:01:45.7]} 24... c6 {[%clk 0:00:12.4]} 25.
Re3 {[%clk 0:01:35.2]} 25... cxd5 {[%clk 0:00:10.8]} 26. Qxe5 {[%clk 0:01:35.4]}
26... Qxe5 {[%clk 0:00:10.6]} 27. Rxe5 {[%clk 0:01:36.3]} 27... d4 {[%clk
0:00:11]} 28. Rd3 {[%clk 0:01:33.3]} 28... Rfd8 {[%clk 0:00:09.8]} 29. f3 {[%clk
0:01:33]} 29... g5 {[%clk 0:00:09.2]} 30. Re7 {[%clk 0:01:32.3]} 30... R6d7
{[%clk 0:00:08.5]} 31. Rxd7 {[%clk 0:01:32.1]} 31... Rxd7 {[%clk 0:00:07.2]} 32.
c3 {[%clk 0:01:32.4]} 32... Re7 {[%clk 0:00:04.4]} 33. Rxd4 {[%clk 0:01:29.6]}
33... a5 {[%clk 0:00:02.3]} 34. Kf2 {[%clk 0:01:28.3]} 34... a4 {[%clk
0:00:02.6]} 35. Bd5 {[%clk 0:01:27.3]} 35... Kg7 {[%clk 0:00:02.9]} 36. Bxb7
{[%clk 0:01:25.6]} 36... Rxb7 {[%clk 0:00:03.8]} 37. a3 {[%clk 0:01:26]} 37...
Kf6 {[%clk 0:00:03.5]} 38. Rd5 {[%clk 0:01:25.6]} 38... h5 {[%clk 0:00:03.2]}
39. Ke3 {[%clk 0:01:24.8]} 39... h4 {[%clk 0:00:03.2]} 40. h3 {[%clk 0:01:24.7]}
40... Re7+ {[%clk 0:00:02.2]} 41. Kd3 {[%clk 0:01:25]} 41... Re1 {[%clk
0:00:02]} 42. Rxb5 {[%clk 0:01:24.4]} 42... Rg1 {[%clk 0:00:02.9]} 43. Ke4
{[%clk 0:01:13.3]} 43... Rxg2 {[%clk 0:00:03.3]} 44. f4 {[%clk 0:01:13.7]} 44...
g4 {[%clk 0:00:02.7]} 45. hxg4 {[%clk 0:01:12.9]} 45... Rxg4 {[%clk 0:00:01.3]}
46. Rh5 {[%clk 0:01:10.1]} 1-0

[Event "*** SCC Grand Prix: Titled Tuesday Blitz"]
[Site "Chess.com"]
[Date "2020.07.21"]
[Round "1"]
[White "kirillshevchenko"]
[Black "sergeikim"]
[Result "1-0"]
[WhiteElo "2923"]
[BlackElo "2445"]
[TimeControl "180+1"]
[EndTime "10:07:13 PDT"]
[Termination "kirillshevchenko won by resignation"]

1. e4 {[%clk 0:03:00.9]} 1... e5 {[%clk 0:02:59.7]} 2. Nf3 {[%clk 0:03:00.4]}
2... Nc6 {[%clk 0:02:59.7]} 3. d4 {[%clk 0:03:00.9]} 3... exd4 {[%clk 0:02:59]}
4. Bc4 {[%clk 0:03:01.5]} 4... Nf6 {[%clk 0:02:57.9]} 5. e5 {[%clk 0:03:01.6]}
5... d5 {[%clk 0:02:56.5]} 6. Bb5 {[%clk 0:03:01.8]} 6... Ne4 {[%clk 0:02:56.5]}
7. Nxd4 {[%clk 0:03:01.1]} 7... Bc5 {[%clk 0:02:56.4]} 8. Be3 {[%clk 0:02:56.8]}
8... Bxd4 {[%clk 0:02:56.1]} 9. Bxd4 {[%clk 0:02:46.1]} 9... O-O {[%clk
0:02:56.5]} 10. O-O {[%clk 0:02:21.2]} 10... Nxd4 {[%clk 0:02:55.4]} 11. Qxd4
{[%clk 0:02:22.1]} 11... c5 {[%clk 0:02:52.3]} 12. Qe3 {[%clk 0:02:21.9]} 12...
Bf5 {[%clk 0:02:34.8]} 13. Bd3 {[%clk 0:01:57.9]} 13... c4 {[%clk 0:02:20.3]}
14. Bxe4 {[%clk 0:01:56.9]} 14... Bxe4 {[%clk 0:02:20.1]} 15. c3 {[%clk
0:01:50.6]} 15... f6 {[%clk 0:02:18.9]} 16. Nd2 {[%clk 0:01:47.7]} 16... Bd3
{[%clk 0:02:16.2]} 17. Rfe1 {[%clk 0:01:46.5]} 17... fxe5 {[%clk 0:02:13]} 18.
Qxe5 {[%clk 0:01:47.4]} 18... Qd7 {[%clk 0:02:10.8]} 19. Qe6+ {[%clk 0:01:30.7]}
19... Qxe6 {[%clk 0:02:10.4]} 20. Rxe6 {[%clk 0:01:31.6]} 20... Rae8 {[%clk
0:01:58.2]} 21. Rae1 {[%clk 0:01:32]} 21... Kf7 {[%clk 0:01:47.1]} 22. Rxe8
{[%clk 0:01:23.3]} 22... Rxe8 {[%clk 0:01:46.4]} 23. Rxe8 {[%clk 0:01:24.2]}
23... Kxe8 {[%clk 0:01:46.6]} 24. f4 {[%clk 0:01:20.7]} 24... Be2 {[%clk
0:01:28.2]} 25. Kf2 {[%clk 0:01:20.1]} 25... Bd1 {[%clk 0:01:27.8]} 26. Ke3
{[%clk 0:01:18.7]} 26... Kd7 {[%clk 0:01:26]} 27. Kd4 {[%clk 0:01:18.3]} 27...
Kd6 {[%clk 0:01:24.6]} 28. Nf1 {[%clk 0:01:18.8]} 28... Bh5 {[%clk 0:01:18.3]}
29. Ne3 {[%clk 0:01:18.6]} 29... Bf7 {[%clk 0:01:14.8]} 30. g4 {[%clk
0:01:17.2]} 30... g6 {[%clk 0:01:13.7]} 31. h4 {[%clk 0:01:16.9]} 31... Be6
{[%clk 0:01:10.6]} 32. f5 {[%clk 0:00:51.1]} 32... gxf5 {[%clk 0:01:02.1]} 33.
gxf5 {[%clk 0:00:51.5]} 33... Bf7 {[%clk 0:01:01.5]} 34. Ng2 {[%clk 0:00:49.2]}
34... b5 {[%clk 0:00:56.4]} 35. Nf4 {[%clk 0:00:48.6]} 35... a5 {[%clk
0:00:54.6]} 36. a3 {[%clk 0:00:49.1]} 36... Bg8 {[%clk 0:00:45.3]} 37. Nh5
{[%clk 0:00:47.6]} 37... Bf7 {[%clk 0:00:44.1]} 38. Nf6 {[%clk 0:00:47.6]} 38...
h5 {[%clk 0:00:40.5]} 39. Nh7 {[%clk 0:00:46.1]} 39... Bg8 {[%clk 0:00:32.8]}
40. Ng5 {[%clk 0:00:46.1]} 40... Ke7 {[%clk 0:00:32]} 41. Ke5 {[%clk 0:00:45.6]}
41... b4 {[%clk 0:00:10.4]} 42. f6+ {[%clk 0:00:44.9]} 42... Kf8 {[%clk
0:00:08.7]} 43. axb4 {[%clk 0:00:42.4]} 43... axb4 {[%clk 0:00:08.2]} 44. cxb4
{[%clk 0:00:43.1]} 44... Ke8 {[%clk 0:00:08]} 45. b5 {[%clk 0:00:40.9]} 45...
Kd7 {[%clk 0:00:07.9]} 46. f7 {[%clk 0:00:40.6]} 46... Bxf7 {[%clk 0:00:08]} 47.
Nxf7 {[%clk 0:00:41.5]} 1-0

[Event "*** SCC Grand Prix: Titled Tuesday Blitz"]
[Site "Chess.com"]
[Date "2020.07.21"]
[Round "1"]
[White "WildTricks"]
[Black "sm_sharon"]
[Result "1-0"]
[WhiteElo "2503"]
[BlackElo "2055"]
[TimeControl "180+1"]
[EndTime "10:07:13 PDT"]
[Termination "WildTricks won by resignation"]

1. e4 {[%clk 0:02:56.7]} 1... c5 {[%clk 0:02:55.8]} 2. Nf3 {[%clk 0:02:57.1]}
2... d6 {[%clk 0:02:53.2]} 3. d4 {[%clk 0:02:56.9]} 3... cxd4 {[%clk 0:02:53.1]}
4. Qxd4 {[%clk 0:02:57.5]} 4... Nc6 {[%clk 0:02:52.1]} 5. Qe3 {[%clk 0:02:56.2]}
5... Nf6 {[%clk 0:02:47.3]} 6. h3 {[%clk 0:02:55.6]} 6... g6 {[%clk 0:02:47.2]}
7. Be2 {[%clk 0:02:54.7]} 7... Bg7 {[%clk 0:02:47.1]} 8. O-O {[%clk 0:02:54]}
8... O-O {[%clk 0:02:46.8]} 9. Rd1 {[%clk 0:02:54.5]} 9... Qc7 {[%clk
0:02:45.5]} 10. c4 {[%clk 0:02:52.3]} 10... Be6 {[%clk 0:02:28.1]} 11. Nc3
{[%clk 0:02:49.2]} 11... a6 {[%clk 0:02:20.7]} 12. Rb1 {[%clk 0:02:47]} 12... h6
{[%clk 0:02:14.6]} 13. b3 {[%clk 0:02:44.5]} 13... Nd7 {[%clk 0:02:12.9]} 14.
Bd2 {[%clk 0:02:38.3]} 14... Nde5 {[%clk 0:01:56.3]} 15. Nxe5 {[%clk 0:02:35.5]}
15... Nxe5 {[%clk 0:01:55.8]} 16. Rbc1 {[%clk 0:02:23.7]} 16... Qc5 {[%clk
0:01:51.1]} 17. Qxc5 {[%clk 0:02:13]} 17... dxc5 {[%clk 0:01:50.9]} 18. Na4
{[%clk 0:02:13.5]} 18... Rac8 {[%clk 0:01:42.7]} 19. Be3 {[%clk 0:02:11.7]}
19... Nd7 {[%clk 0:01:28.7]} 20. Rd2 {[%clk 0:02:05.7]} 20... b6 {[%clk
0:00:48.9]} 21. Rcd1 {[%clk 0:02:02.2]} 21... Rc7 {[%clk 0:00:47.9]} 22. f4
{[%clk 0:01:49.6]} 22... Rb7 {[%clk 0:00:34.7]} 23. Bf3 {[%clk 0:01:36]} 23...
Rc7 {[%clk 0:00:18.9]} 24. g4 {[%clk 0:01:28.8]} 24... f5 {[%clk 0:00:18.4]} 25.
gxf5 {[%clk 0:01:21.2]} 25... gxf5 {[%clk 0:00:18.4]} 26. e5 {[%clk 0:01:21.8]}
26... Rb8 {[%clk 0:00:18.2]} 27. Nc3 {[%clk 0:01:13.8]} 27... b5 {[%clk
0:00:17.4]} 28. Nd5 {[%clk 0:01:12.6]} 28... Bxd5 {[%clk 0:00:17.1]} 29. Bxd5+
{[%clk 0:01:12]} 29... Kh8 {[%clk 0:00:17.3]} 30. Be6 {[%clk 0:01:12]} 30... Nf8
{[%clk 0:00:17.2]} 31. Bxf5 {[%clk 0:01:10.7]} 31... bxc4 {[%clk 0:00:16.7]} 32.
bxc4 {[%clk 0:01:11.6]} 32... e6 {[%clk 0:00:15.9]} 33. Be4 {[%clk 0:01:08.9]}
33... Rf7 {[%clk 0:00:15.8]} 34. Kg2 {[%clk 0:01:07.7]} 34... h5 {[%clk
0:00:14.5]} 35. Kf3 {[%clk 0:01:03.9]} 35... Bh6 {[%clk 0:00:14.4]} 36. Rd8
{[%clk 0:00:56.1]} 36... Rxd8 {[%clk 0:00:14.3]} 37. Rxd8 {[%clk 0:00:55.1]}
37... Bg7 {[%clk 0:00:13.3]} 38. Kg3 {[%clk 0:00:52.1]} 38... Bh6 {[%clk
0:00:13]} 39. Bf3 {[%clk 0:00:48.2]} 39... Rg7+ {[%clk 0:00:11.9]} 40. Kf2
{[%clk 0:00:46.8]} 40... Rg8 {[%clk 0:00:12.1]} 41. Bxh5 {[%clk 0:00:45.5]}
41... Nh7 {[%clk 0:00:11.1]} 42. Rxg8+ {[%clk 0:00:45]} 42... Kxg8 {[%clk
0:00:12]} 43. Kf3 {[%clk 0:00:44.9]} 43... Kf8 {[%clk 0:00:09.8]} 44. Bxc5+
{[%clk 0:00:45]} 1-0